bitfinex/quotes_SOLUSD_20250318
["timestamp","ask_amount","ask_price","bid_price","bid_amount"]
[1742339610849,13.45425672,125.68,125.66,28.24222314]
[1742339611340,13.45425672,125.67,125.66,28.24222314]
[1742339611566,13.45425672,125.67,125.66,20.14216157]
[1742339611858,13.45425672,125.67,125.66,0.14216157]
[1742339612264,13.51725672,125.67,125.66,0.14216157]
[1742339615758,13.51725672,125.67,125.64,8.10106157]
[1742339615969,0.063,125.67,125.65,0.14216157]
[1742339616163,13.45425672,125.66,125.65,0.14216157]
[1742339617244,13.45425672,125.66,125.65,28.10076157]
[1742339618569,0.063,125.67,125.66,0.14216157]
[1742339620069,0.063,125.67,125.66,0.28432314]
[1742339620579,0.063,125.67,125.66,28.24222314]
[1742339621555,13.51725672,125.67,125.66,28.24222314]
[1742339622975,13.51725672,125.67,125.66,28.10006157]
[1742339623277,0.063,125.67,125.66,28.24222314]
[1742339623982,0.063,125.67,125.66,41.72647986]
[1742339624460,0.063,125.68,125.67,0.14216157]
[1742339624775,0.063,125.69,125.68,0.14216157]
[1742339625071,0.063,125.69,125.68,21.69527986]
[1742339625245,0.063,125.69,125.68,8.24102314]
[1742339626669,0.063,125.69,125.68,0.14216157]
[1742339626978,0.063,125.69,125.68,0.28432314]
[1742339627861,0.063,125.69,125.68,8.24102314]
[1742339628776,0.063,125.69,125.68,0.28432314]
[1742339630059,0.063,125.69,125.68,8.24102314]
[1742339631548,13.51725672,125.69,125.68,20.28432314]
[1742339632460,0.063,125.69,125.68,28.24102314]
[1742339633871,0.063,125.69,125.68,41.69527986]
[1742339634378,0.063,125.69,125.68,28.24102314]
[1742339636267,0.063,125.69,125.68,28.30402314]
[1742339636966,0.063,125.69,125.68,0.34732314]
[1742339637475,0.063,125.69,125.68,28.30402314]
[1742339645285,0.03,125.71,125.69,0.28432314]
[1742339645482,0.0001,125.71,125.7,7.06432314]
[1742339646364,0.0001,125.71,125.7,15.01972314]
[1742339653291,0.0001,125.71,125.7,28.47397986]
[1742339653987,0.0001,125.71,125.7,15.01972314]
[1742339656367,0.0001,125.71,125.7,23.23032314]
[1742339656568,0.0001,125.71,125.7,36.68457986]
[1742339656776,0.0001,125.71,125.7,23.23032314]
[1742339660686,0.0001,125.71,125.7,23.29332314]
[1742339661794,0.0001,125.71,125.7,16.69032314]
[1742339664386,0.0001,125.71,125.7,15.08272314]
[1742339667499,13.45435672,125.71,125.7,15.08272314]
[1742339667672,0.0001,125.71,125.7,15.08272314]
[1742339677671,13.45435672,125.71,125.7,20.34732314]
[1742339678090,13.45435672,125.71,125.7,0.34732314]
[1742339679804,13.45435672,125.71,125.7,28.30272314]
[1742339679805,0.0001,125.71,125.7,28.30272314]
[1742339684093,13.45435672,125.71,125.7,8.16056157]
[1742339684401,0.0001,125.71,125.7,28.30272314]
[1742339692703,13.45435672,125.71,125.7,28.30272314]
[1742339696511,0.0001,125.71,125.7,28.30272314]
[1742339701911,0.0001,125.71,125.7,43.94398084]
[1742339702119,0.03,125.74,125.73,20.28432314]
[1742339702298,0.0001,125.74,125.73,41.10796961]
[1742339702813,0.0001,125.74,125.73,49.06146961]
[1742339704515,0.0001,125.74,125.73,67.99544161]
[1742339705023,0.0001,125.74,125.73,35.60721289]
[1742339705321,0.0001,125.74,125.73,35.01782314]
[1742339705909,0.0001,125.74,125.73,67.99542854]
[1742339706626,0.0001,125.74,125.73,53.95179514]
[1742339707219,0.0001,125.74,125.73,67.40605186]
[1742339707607,12.46549124,125.78,125.74,0.28432314]
[1742339708318,13.45425672,125.76,125.74,0.28432314]
[1742339709018,13.45425672,125.76,125.74,7.06432314]
[1742339709339,13.45425672,125.76,125.75,8.09436157]
[1742339710320,13.45425672,125.77,125.75,8.09436157]
[1742339710515,13.45425672,125.77,125.76,0.14216157]
[1742339711019,13.45425672,125.77,125.75,8.09436157]
[1742339711225,13.45425672,125.76,125.74,20.0]
[1742339711439,13.45425672,125.75,125.71,7.06432314]
[1742339711725,13.45425672,125.73,125.72,8.09586157]
[1742339712296,13.45425672,125.73,125.72,0.28432314]
[1742339713823,13.45425672,125.73,125.72,0.14216157]
[1742339717134,13.45425672,125.73,125.72,0.14216157]
[1742339718952,13.45425672,125.73,125.72,8.09626157]
[1742339719758,13.45425672,125.73,125.72,0.14216157]
[1742339722040,13.45425672,125.73,125.72,8.09626157]
[1742339722241,0.03,125.74,125.73,0.14216157]
[1742339722434,13.48425672,125.74,125.73,0.14216157]
[1742339725160,13.48425672,125.74,125.73,0.28432314]
[1742339726062,13.48425672,125.74,125.73,0.14216157]
[1742339732469,21.43715672,125.74,125.73,0.14216157]
[1742339732668,13.48425672,125.74,125.73,0.14216157]
[1742339732967,21.43715672,125.74,125.73,0.14216157]
[1742339738064,0.03,125.74,125.73,0.14216157]
[1742339738577,13.48425672,125.74,125.73,0.14216157]
[1742339740572,0.03,125.74,125.73,0.14216157]
[1742339741071,0.03,125.74,125.73,76.15761758]
[1742339741367,0.0001,125.74,125.73,76.15761758]
[1742339741672,0.03,125.76,125.74,0.14216157]
[1742339741977,0.03,125.76,125.75,33.26109499]
[1742339742478,0.03,125.76,125.75,41.21329499]
[1742339744473,0.03,125.8,125.79,8.23402314]
[1742339744661,0.03,125.8,125.79,15.03402314]
[1742339746461,0.03,125.8,125.79,15.62187041]
[1742339747983,0.0001,125.8,125.79,34.55584241]
[1742339749263,0.0001,125.8,125.79,34.27151927]
[1742339751194,0.0001,125.8,125.79,34.55584241]
[1742339754089,0.03,125.82,125.81,38.933972]
[1742339754396,0.03,125.82,125.81,39.52126076]
[1742339754566,0.03,125.82,125.81,38.933972]
[1742339755986,0.03,125.82,125.81,46.882372]
[1742339756295,0.03,125.83,125.82,18.933972]
[1742339756785,0.03,125.84,125.82,20.22109148]
[1742339756990,0.03,125.84,125.83,33.471472]
[1742339757192,0.0001,125.84,125.83,47.21005186]
[1742339757990,0.0001,125.84,125.83,55.15725186]
[1742339758178,0.0001,125.84,125.83,41.418672]
[1742339758488,0.0001,125.84,125.83,35.56329514]
[1742339758892,2.9028932,125.87,125.83,49.71755186]
[1742339759075,9.32e-05,125.89,125.87,1.5978]
[1742339759277,9.32e-05,125.89,125.88,59.62822872]
[1742339759478,9.32e-05,125.89,125.88,70.78079076]
[1742339760093,9.32e-05,125.89,125.88,78.72479076]
[1742339760288,9.32e-05,125.89,125.88,67.85655186]
[1742339761492,13.45425672,125.98,125.95,20.28432314]
[1742339761696,13.45425672,125.99,125.95,33.73857986]
[1742339762196,13.45425672,125.99,125.95,28.22392314]
[1742339762379,13.45425672,126.0,125.95,60.32782872]
[1742339762578,13.45425672,125.99,125.95,46.873572]
[1742339762782,2.26583179,126.01,125.95,28.22392314]
[1742339762987,13.45425672,125.98,125.95,8.22392314]
[1742339763169,2.26583179,126.01,125.95,0.28432314]
[1742339763373,13.45425672,125.97,125.95,28.22392314]
[1742339764591,13.62071777,125.96,125.95,0.28432314]
[1742339764998,0.16646105,125.96,125.95,0.28432314]
[1742339765504,13.62071777,125.96,125.95,0.14216157]
[1742339768379,0.16646105,125.96,125.95,20.28432314]
[1742339768585,13.62071777,125.96,125.95,20.28432314]
[1742339768977,0.16646105,125.96,125.95,0.28432314]
[1742339769182,0.16646105,125.96,125.95,20.28432314]
[1742339770002,13.62071777,125.96,125.95,20.28432314]
[1742339770374,13.62071777,125.96,125.95,0.28432314]
[1742339770574,0.16646105,125.96,125.95,20.28432314]
[1742339771090,13.62071777,125.96,125.95,20.28432314]
[1742339771285,13.62071777,125.96,125.95,0.28432314]
[1742339771476,13.62071777,125.96,125.95,0.14216157]
[1742339772087,13.62071777,125.96,125.92,0.28432314]
[1742339772394,13.45425672,125.94,125.92,0.28432314]
[1742339772590,0.16646105,125.96,125.92,0.28432314]
[1742339772591,13.45425672,125.95,125.94,0.14216157]
[1742339772792,0.16646105,125.96,125.94,0.28432314]
[1742339773393,13.62071777,125.96,125.94,0.28432314]
[1742339774100,0.16646105,125.96,125.94,0.28432314]
[1742339774305,13.62071777,125.96,125.94,0.28432314]
[1742339774689,13.45425672,125.95,125.94,0.14216157]
[1742339774887,13.45425672,125.95,125.91,0.14216157]
[1742339775094,13.45425672,125.94,125.92,0.14216157]
[1742339776384,13.45425672,125.95,125.94,0.14216157]
[1742339776583,13.62071777,125.96,125.93,20.14216157]
[1742339776878,13.62071777,125.96,125.94,0.14216157]
[1742339777080,13.45425672,125.95,125.94,0.14216157]
[1742339778608,13.45425672,125.95,125.92,20.0]
[1742339778910,8.10546105,125.96,125.93,0.28432314]
[1742339779110,7.9386,125.97,125.93,0.28432314]
[1742339779483,0.03,125.96,125.93,0.28432314]
[1742339780911,13.45425672,125.94,125.93,0.28432314]
[1742339781109,13.45425672,125.94,125.93,8.22522314]
[1742339781806,13.45425672,125.94,125.93,0.28432314]
[1742339782310,13.45425672,125.94,125.93,8.22522314]
[1742339782715,13.45425672,125.95,125.93,8.22522314]
[1742339783299,13.45425672,125.94,125.93,8.22522314]
[1742339783514,13.45425672,125.95,125.93,8.22522314]
[1742339785313,0.03,125.96,125.93,8.22522314]
[1742339785497,13.48425672,125.96,125.93,8.22522314]
[1742339786923,13.45425672,125.95,125.93,8.22522314]
[1742339787621,0.03,125.96,125.93,8.22522314]
[1742339787825,0.03,125.96,125.95,20.14216157]
[1742339787999,0.03,125.96,125.95,20.28432314]
[1742339788702,0.03,125.96,125.95,13.73857986]
[1742339789229,0.03,125.96,125.95,8.22392314]
[1742339789518,0.0001,125.96,125.95,41.19657352]
[1742339790020,2.26583179,126.01,125.99,0.28432314]
[1742339790229,2.26583179,126.01,125.99,33.73857986]
[1742339790407,2.26583179,126.01,125.99,20.28432314]
[1742339791098,2.26583179,126.01,126.0,8.07866157]
[1742339791401,2.26583179,126.01,126.0,0.14216157]
[1742339791402,23.16438799,126.01,126.0,0.14216157]
[1742339791807,23.16438799,126.01,125.99,27.9369]
[1742339792017,2.26583179,126.01,125.99,28.07906157]
[1742339792201,2.26583179,126.01,125.99,27.9369]
[1742339792524,23.16438799,126.01,125.99,27.9369]
[1742339792704,2.26583179,126.01,125.99,27.9369]
[1742339792905,23.16438799,126.01,125.99,27.9369]
[1742339793309,20.8985562,126.0,125.98,28.07966157]
[1742339793503,20.8985562,126.0,125.98,27.9375]
[1742339793814,20.8985562,126.0,125.99,0.14216157]
[1742339794230,2.26583179,126.01,125.99,0.14216157]
[1742339794531,20.8985562,126.0,125.99,0.14216157]
[1742339796711,20.8985562,126.0,125.99,8.07926157]
[1742339797226,2.26583179,126.01,125.99,8.07926157]
[1742339797437,2.26583179,126.01,125.99,8.22142314]
[1742339797438,23.16438799,126.01,125.99,8.22142314]
[1742339797812,2.26583179,126.01,125.99,8.22142314]
[1742339798018,23.16438799,126.01,125.99,8.22142314]
[1742339799318,23.16438799,126.01,126.0,0.14216157]
[1742339799628,2.26583179,126.01,126.0,0.14216157]
[1742339799808,23.16438799,126.01,126.0,8.07866157]
[1742339800008,23.16438799,126.01,125.99,8.07906157]
[1742339800238,20.8985562,126.0,125.99,8.07906157]
[1742339800422,23.16438799,126.01,125.99,8.07906157]
[1742339800620,2.26583179,126.01,126.0,0.14216157]
[1742339802233,2.26583179,126.01,126.0,28.22082314]
[1742339802635,23.16438799,126.01,126.0,28.22082314]
[1742339802813,23.16438799,126.01,126.0,0.14216157]
[1742339803008,23.16438799,126.01,125.99,7.9369]
[1742339803229,20.8985562,126.0,125.99,8.07906157]
[1742339804618,20.8985562,126.0,125.99,0.14216157]
[1742339805015,20.8985562,126.0,125.97,8.08026157]
[1742339805216,10.23193179,126.01,125.98,0.14216157]
[1742339805823,20.8985562,125.99,125.98,0.14216157]
[1742339806525,20.8985562,125.99,125.97,7.9382]
[1742339806730,20.8985562,125.98,125.97,0.14216157]
[1742339808236,28.4785562,125.98,125.96,0.063]
[1742339808413,20.8985562,125.97,125.96,0.063]
[1742339813948,30.32557984,125.97,125.96,0.063]
[1742339819153,22.82055492,125.97,125.96,0.063]
[1742339822845,22.03155492,125.97,125.96,0.063]
[1742339824556,29.51155492,125.97,125.96,0.063]
[1742339824850,68.29142692,125.97,125.92,0.14216157]
[1742339825042,13.39353128,125.93,125.9,0.28432314]
[1742339825235,13.39353128,125.91,125.9,0.28432314]
[1742339825926,13.39353128,125.92,125.9,0.28432314]
[1742339826144,135.009172,125.97,125.9,0.28432314]
[1742339826145,13.39353128,125.93,125.9,0.28432314]
[1742339826758,13.39353128,125.92,125.9,0.28432314]
[1742339826961,13.39353128,125.92,125.91,8.08426157]
[1742339827265,13.39353128,125.93,125.92,0.14216157]
[1742339827836,13.39353128,125.93,125.9,8.22682314]
[1742339828044,13.39353128,125.92,125.9,0.28432314]
[1742339828739,13.39353128,125.92,125.9,8.22692314]
[1742339830045,13.39353128,125.91,125.9,0.28432314]
[1742339830443,13.39353128,125.91,125.89,0.063]
[1742339830658,13.39353128,125.9,125.89,0.20516157]
[1742339831038,13.39353128,125.9,125.89,8.14856157]
[1742339831258,13.39353128,125.9,125.89,8.29072314]
[1742339831563,13.39353128,125.92,125.9,0.14216157]
[1742339831940,13.39353128,125.91,125.9,0.14216157]
[1742339832372,13.39353128,125.91,125.89,0.20516157]
[1742339832539,13.39353128,125.9,125.89,28.29072314]
[1742339833334,13.39353128,125.91,125.89,28.29072314]
[1742339833952,13.39353128,125.9,125.89,0.063]
[1742339834158,20.83353128,125.9,125.89,0.063]
[1742339835448,21.33633128,125.9,125.89,0.063]
[1742339835649,28.75633128,125.9,125.89,0.063]
[1742339835860,30.24608642,125.9,125.89,0.063]
[1742339836545,49.18005842,125.9,125.89,0.063]
[1742339836746,18.933972,125.89,125.84,0.14216157]
[1742339837054,13.39353128,125.85,125.84,0.14216157]
[1742339837650,13.39353128,125.85,125.83,0.063]
[1742339837969,13.39353128,125.84,125.83,0.063]
[1742339839136,20.96686865,125.84,125.83,0.063]
[1742339839736,41.39135374,125.84,125.83,0.063]
[1742339840136,22.45738174,125.84,125.83,0.063]
[1742339840366,20.96686865,125.84,125.83,0.063]
[1742339842150,39.90084065,125.84,125.83,0.063]
[1742339844367,20.96686865,125.84,125.83,0.063]
[1742339846070,1.49041221,125.85,125.83,0.063]
[1742339846249,20.96686865,125.84,125.83,0.063]
[1742339846770,28.34686865,125.84,125.83,0.063]
[1742339848271,81.6,125.86,125.83,0.063]
[1742339848569,20.96686865,125.84,125.83,0.063]
[1742339850075,20.96686865,125.84,125.83,8.15236157]
[1742339853270,20.96686865,125.84,125.83,0.063]
[1742339858179,49.33777795,125.84,125.83,0.063]
[1742339858863,41.39127795,125.84,125.83,0.063]
[1742339863286,22.45730595,125.84,125.83,0.063]
[1742339864564,29.77730595,125.84,125.83,0.063]
[1742339865060,22.22983909,125.84,125.83,0.063]
[1742339865265,14.90983909,125.84,125.83,0.063]
[1742339865565,49.11031109,125.84,125.83,0.063]
[1742339866771,49.11031109,125.84,125.79,0.20516157]
[1742339866970,13.41940179,125.8,125.79,0.063]
[1742339871198,13.41940179,125.8,125.79,0.20516157]
[1742339871887,1.49066495,125.83,125.8,7.9491]
[1742339872191,13.41940179,125.81,125.8,7.9491]
[1742339872776,13.41940179,125.81,125.79,8.15466157]
[1742339873080,13.41940179,125.8,125.79,8.15466157]
[1742339874002,13.41940179,125.8,125.79,0.20516157]
[1742339877102,13.41940179,125.8,125.79,8.15486157]
[1742339878000,13.41940179,125.8,125.79,0.20516157]
[1742339878176,13.41940179,125.8,125.79,0.063]
[1742339885807,14.91013009,125.8,125.79,0.063]
[1742339886226,30.07923009,125.8,125.79,0.063]
[1742339887284,30.36355323,125.8,125.79,0.063]
[1742339887480,84.04116039,125.8,125.79,0.063]
[1742339887902,84.04116039,125.8,125.77,0.07338623]
[1742339888121,13.41940179,125.78,125.77,0.07338623]
[1742339888416,14.91051808,125.78,125.77,0.07338623]
[1742339889090,14.11716108,125.78,125.77,0.07338623]
[1742339890596,12.62604479,125.78,125.77,0.07338623]
[1742339891203,8.7111136,125.8,125.77,0.07338623]
[1742339891204,13.41940179,125.79,125.77,0.07338623]
[1742339892919,13.41940179,125.78,125.77,8.1665478]
[1742339893920,13.41940179,125.78,125.77,0.2155478]
[1742339894096,13.41940179,125.78,125.77,0.07338623]
[1742339896900,21.36970179,125.78,125.77,0.07338623]
[1742339897826,21.36970179,125.78,125.77,0.13638623]
[1742339898523,21.65402493,125.78,125.77,0.13638623]
[1742339898893,21.65402493,125.78,125.77,0.063]
[1742339899808,23.14528388,125.78,125.77,0.063]
[1742339901699,23.14528388,125.78,125.76,0.063]
[1742339901919,13.41940179,125.77,125.76,0.063]
[1742339902221,0.28432314,125.76,125.72,0.063]
[1742339902411,13.41940179,125.73,125.72,20.063]
[1742339902617,13.41940179,125.73,125.72,0.063]
[1742339905218,8.65161271,125.75,125.72,0.063]
[1742339905425,13.41940179,125.74,125.72,0.063]
[1742339907228,13.41940179,125.74,125.72,8.0171]
[1742339907425,20.57940179,125.75,125.73,0.14216157]
[1742339907627,13.41940179,125.74,125.73,0.14216157]
[1742339908005,20.57940179,125.75,125.73,0.14216157]
[1742339908403,13.41940179,125.75,125.73,0.14216157]
[1742339908629,223.87940179,125.76,125.74,1.6512]
[1742339909210,7.14,125.78,125.75,8.09436157]
[1742339909418,13.41940179,125.77,125.75,8.09436157]
[1742339910626,7.14,125.78,125.75,0.20516157]
[1742339910627,13.41940179,125.76,125.75,0.20516157]
[1742339910830,13.41940179,125.76,125.75,0.063]
[1742339911327,14.91071971,125.76,125.75,0.063]
[1742339911662,15.19504285,125.76,125.75,0.063]
[1742339911936,15.19504285,125.76,125.72,0.063]
[1742339912116,13.41940179,125.73,125.72,0.063]
[1742339912425,7.14,125.73,125.72,0.063]
[1742339912614,20.55940179,125.73,125.72,8.0171]
[1742339912819,20.55940179,125.73,125.72,0.063]
[1742339921435,22.05124661,125.73,125.72,0.063]
[1742339923740,20.55940179,125.73,125.72,0.063]
[1742339930952,28.51290179,125.73,125.72,0.063]
[1742339931342,101.12448095,125.73,125.72,0.063]
[1742339931682,101.12448095,125.73,125.7,0.063]
[1742339931821,13.41940179,125.71,125.7,0.063]
[1742339933148,32.35337379,125.71,125.7,0.063]
[1742339933548,40.30817379,125.71,125.7,0.063]
[1742339934150,32.35337379,125.71,125.7,0.063]
[1742339936142,13.41940179,125.71,125.7,0.063]
[1742339937231,14.91135375,125.71,125.7,0.063]
[1742339938156,13.41940179,125.71,125.7,0.063]
[1742339947238,32.35337379,125.71,125.7,0.063]
[1742339948067,33.84546435,125.71,125.7,0.063]
[1742339950275,33.05200635,125.71,125.7,0.063]
[1742339954357,41.00680635,125.71,125.7,0.063]
[1742339956348,33.05200635,125.71,125.7,0.063]
[1742339956676,53.33786295,125.71,125.7,0.063]
[1742339956874,64.7971819,125.71,125.7,0.063]
[1742339961946,18.933972,125.69,125.68,0.063]
[1742339962150,33.84576482,125.69,125.68,0.063]
[1742339964075,41.80176482,125.69,125.68,0.063]
[1742339964773,54.13282142,125.69,125.66,0.03]
[1742339964976,54.13282142,125.69,125.65,6.1718]
[1742339964977,13.41940179,125.67,125.64,0.13638623]
[1742339965164,13.41940179,125.65,125.64,0.13638623]
[1742339967373,67.09700895,125.65,125.64,0.13638623]
[1742339969460,13.41940179,125.61,125.6,1.7027]
[1742339969655,13.41940179,125.61,125.6,0.063]
[1742339972585,14.91263516,125.61,125.6,0.063]
[1742339973979,41.80770716,125.61,125.6,0.063]
[1742339974287,12.3310566,125.6,125.59,0.063]
[1742339974481,32.79045839,125.6,125.59,0.063]
[1742339974985,105.40203755,125.6,125.58,0.03]
[1742339975169,80.33424721,125.59,125.57,0.063]
[1742339975371,67.09700895,125.58,125.57,0.063]
[1742339976176,13.41940179,125.58,125.57,0.063]
[1742339978889,20.43940179,125.58,125.57,0.063]
[1742339980776,20.43940179,125.59,125.57,0.063]
[1742339981196,13.41940179,125.58,125.57,0.063]
[1742339982186,14.9128589,125.58,125.57,0.063]
[1742339984581,45.30614985,125.58,125.57,0.063]
[1742339984997,106.94675701,125.58,125.57,0.063]
[1742339985196,98.98375701,125.58,125.57,0.063]
[1742339985792,188.54675701,125.58,125.57,0.063]
[1742339985993,187.0532999,125.58,125.57,0.063]
[1742339986189,179.0902999,125.58,125.57,0.063]
[1742339986599,199.38435527,125.58,125.57,0.063]
[1742339986985,191.42135527,125.58,125.57,0.063]
[1742339989376,199.38435527,125.58,125.57,0.063]
[1742339990401,191.42135527,125.58,125.57,0.063]
[1742339991719,199.38435527,125.58,125.57,0.063]
[1742339992692,117.78435527,125.58,125.56,0.03]
[1742339992992,38.7005913,125.57,125.56,0.03]
[1742339993192,46.6641913,125.57,125.56,0.03]
[1742339995598,38.7005913,125.57,125.56,0.03]
[1742339996005,46.6641913,125.57,125.56,0.03]
[1742339996380,53.6641913,125.57,125.56,0.03]
[1742339997400,135.2641913,125.57,125.56,0.03]
[1742339997695,133.77027263,125.57,125.56,0.03]
[1742339998085,18.933972,125.56,125.53,0.03]
[1742339998291,13.41940179,125.54,125.53,0.03]
[1742340002390,13.8250312,125.55,125.53,0.03]
[1742340002590,13.41940179,125.54,125.53,0.03]
[1742340004695,25.75045716,125.55,125.53,0.03]
[1742340006622,12.33105537,125.55,125.53,7.9962]
[1742340006792,25.75045716,125.55,125.53,7.9962]
[1742340007109,12.33105537,125.55,125.53,7.9962]
[1742340007316,31.85872074,125.56,125.53,7.9962]
[1742340007491,24.87872074,125.56,125.53,7.9962]
[1742340007697,20.41940179,125.56,125.53,7.9962]
[1742340008005,13.41940179,125.54,125.53,8.13836157]
[1742340008406,13.41940179,125.55,125.53,8.13836157]
[1742340009310,20.41940179,125.56,125.54,0.14216157]
[1742340011119,13.41940179,125.56,125.55,7.9649]
[1742340011330,12.39405537,125.58,125.56,0.14216157]
[1742340011624,12.39405537,125.58,125.56,1.77096157]
[1742340011625,0.063,125.58,125.56,1.77096157]
[1742340011915,0.063,125.58,125.57,20.0]
[1742340013513,0.063,125.58,125.57,27.9636]
[1742340020827,0.0001,125.58,125.57,60.31697379]
[1742340021022,210.903,125.64,125.59,0.14216157]
[1742340021023,231.30240179,125.64,125.59,0.14216157]
[1742340021324,231.30240179,125.64,125.59,13.56156336]
[1742340021704,224.32240179,125.64,125.61,0.14216157]
[1742340022328,210.903,125.64,125.61,0.14216157]
[1742340023021,224.32240179,125.64,125.61,0.14216157]
[1742340024140,224.32240179,125.64,125.62,7.9605]
[1742340024433,13.41940179,125.63,125.58,41.42420179]
[1742340024640,13.41940179,125.59,125.58,9.5915]
[1742340024836,13.41940179,125.59,125.58,8.10486157]
[1742340026221,6.98,125.6,125.58,8.10486157]
[1742340026424,13.41940179,125.59,125.58,8.10486157]
[1742340028928,13.41940179,125.59,125.56,7.9643]
[1742340029127,6.98,125.6,125.56,7.9643]
[1742340029128,13.41940179,125.58,125.56,7.9643]
[1742340029326,13.41940179,125.57,125.56,8.10646157]
[1742340029522,13.41940179,125.57,125.55,9.4947]
[1742340029724,13.41940179,125.56,125.55,9.63686157]
[1742340029925,13.41940179,125.57,125.55,9.63686157]
[1742340031728,13.41940179,125.56,125.54,7.9654]
[1742340031918,13.41940179,125.55,125.54,7.9654]
[1742340032642,13.41940179,125.55,125.53,8.13836157]
[1742340036945,13.41940179,125.56,125.53,8.13836157]
[1742340037130,13.41940179,125.54,125.53,8.13836157]
[1742340037441,13.41940179,125.54,125.53,7.9962]
[1742340038824,13.41940179,125.54,125.53,0.03]
[1742340039537,20.35940179,125.54,125.53,0.03]
[1742340043544,81.6,125.57,125.53,0.03]
[1742340043743,12.98281895,125.6,125.54,0.14216157]
[1742340043744,13.41940179,125.58,125.54,0.14216157]
[1742340043925,107.38964886,125.6,125.54,0.14216157]
[1742340044233,13.41940179,125.59,125.54,13.56156336]
[1742340045126,13.41940179,125.6,125.55,13.56156336]
[1742340045331,7.14,125.6,125.57,0.14216157]
[1742340045531,20.55940179,125.6,125.57,27.8728]
[1742340046827,20.55940179,125.6,125.58,0.14216157]
[1742340046828,7.14,125.6,125.58,0.14216157]
[1742340047123,20.55940179,125.6,125.58,0.14216157]
[1742340048151,20.55940179,125.6,125.59,7.9624]
[1742340050036,7.14,125.6,125.59,7.9624]
[1742340050351,13.41940179,125.62,125.59,27.8684]
[1742340050546,95.01940179,125.63,125.6,0.14216157]
[1742340050739,13.41940179,125.63,125.6,0.14216157]
[1742340051656,224.32240179,125.64,125.6,0.14216157]
[1742340051832,231.44240179,125.64,125.6,0.14216157]
[1742340052032,231.44240179,125.64,125.61,7.9611]
[1742340053853,231.44240179,125.64,125.63,7.9598]
[1742340054157,231.44240179,125.64,125.63,8.10196157]
[1742340054158,0.063,125.64,125.63,8.10196157]
[1742340054657,0.063,125.71,125.67,20.28432314]
[1742340054957,0.063,125.71,125.68,20.0]
[1742340055257,0.063,125.71,125.68,33.41940179]
[1742340056049,0.063,125.71,125.7,0.14216157]
[1742340056243,0.063,125.71,125.7,8.35616157]
[1742340058361,0.063,125.71,125.7,16.31156157]
[1742340061454,0.063,125.71,125.7,8.35616157]
[1742340061644,0.063,125.71,125.7,16.31156157]
[1742340062758,21.06062251,125.71,125.67,16.1709]
[1742340062959,21.06062251,125.71,125.68,0.14216157]
[1742340063847,21.06062251,125.71,125.65,0.14216157]
[1742340063848,20.99762251,125.69,125.65,0.14216157]
[1742340064070,20.99762251,125.66,125.65,0.14216157]
[1742340064372,20.99762251,125.67,125.65,0.14216157]
[1742340066569,20.99762251,125.66,125.65,0.14216157]
[1742340066797,20.99762251,125.66,125.64,0.03]
[1742340067949,20.99762251,125.66,125.65,0.14216157]
[1742340068255,20.99762251,125.67,125.65,0.14216157]
[1742340068650,28.95502251,125.67,125.64,0.03]
[1742340069054,20.99762251,125.66,125.64,0.03]
[1742340069667,20.99762251,125.65,125.64,0.03]
[1742340075174,22.49024339,125.65,125.64,0.03]
[1742340075580,20.99762251,125.65,125.64,0.03]
[1742340076667,28.95622251,125.65,125.64,0.03]
[1742340077971,47.89019451,125.65,125.64,0.03]
[1742340079261,175.79786405,125.65,125.58,1.6643]
[1742340079484,13.46105841,125.6,125.58,1.6643]
[1742340079783,13.46105841,125.61,125.58,9.6273]
[1742340080875,13.46105841,125.63,125.59,0.14216157]
[1742340081055,102.12105841,125.64,125.59,13.60321998]
[1742340081456,102.12105841,125.64,125.6,7.9617]
[1742340081986,13.46105841,125.63,125.6,7.9617]
[1742340082984,13.46105841,125.62,125.6,7.9617]
[1742340083180,21.03319535,125.62,125.6,7.9617]
[1742340084761,21.03319535,125.62,125.59,8.10426157]
[1742340084968,21.03319535,125.61,125.59,0.14216157]
[1742340085168,21.03319535,125.6,125.58,9.6272]
[1742340087283,21.03319535,125.61,125.58,9.6272]
[1742340088490,21.03319535,125.6,125.58,9.6272]
[1742340089086,21.03319535,125.6,125.58,0.03]
[1742340089388,21.03319535,125.59,125.58,0.03]
[1742340093496,22.52642044,125.59,125.58,0.03]